[Event "Titled Tuesday Blitz November 22 Late 2022"]
[White "Bogaudinov, Rushan"]
[Black "Guzman, Christopher"]
[WhiteFideId "4129288"]
[BlackFideId "6405096"]
[WhiteElo "1997"]
[BlackElo "2272"]
[Result "0-1"]
[Round "01"]
[TimeControl "180+1"]
[Date "2022.11.23"]
[WhiteClock "0:00:02"]
[BlackClock "0:00:21"]

1. e4 {[%clk 0:02:52]}  e5 {[%clk 0:02:59]} 2. Nf3 {[%clk 0:02:52]}  Nc6 {[%clk 0:02:59]} 3. Nc3 {[%clk 0:02:50]}  Nf6 {[%clk 0:02:59]} 4. Bb5 {[%clk 0:02:50]}  d6 {[%clk 0:02:57]} 5. Bxc6+ {[%clk 0:02:48]}  bxc6 {[%clk 0:02:57]} 6. d4 {[%clk 0:02:49]}  exd4 {[%clk 0:02:58]} 7. Nxd4 {[%clk 0:02:49]}  Bd7 {[%clk 0:02:57]} 8. O-O {[%clk 0:02:48]}  Be7 {[%clk 0:02:53]} 9. Re1 {[%clk 0:02:48]}  O-O {[%clk 0:02:52]} 10. b3 {[%clk 0:02:41]}  Re8 {[%clk 0:02:35]} 11. Bb2 {[%clk 0:02:40]}  Bf8 {[%clk 0:02:35]} 12. Qd3 {[%clk 0:02:38]}  c5 {[%clk 0:02:35]} 13. Nf3 {[%clk 0:02:36]}  Bc6 {[%clk 0:02:33]} 14. Nd5 {[%clk 0:02:23]}  Nxd5 {[%clk 0:02:23]} 15. exd5 {[%clk 0:02:23]}  Bd7 {[%clk 0:02:23]} 16. h3 {[%clk 0:02:19]}  h6 {[%clk 0:02:23]} 17. Rxe8 {[%clk 0:02:05]}  Bxe8 {[%clk 0:02:21]} 18. c4 {[%clk 0:01:59]}  a5 {[%clk 0:02:20]} 19. a4 {[%clk 0:01:49]}  c6 {[%clk 0:02:18]} 20. dxc6 {[%clk 0:01:46]}  Bxc6 {[%clk 0:02:17]} 21. Rd1 {[%clk 0:01:45]}  Rb8 {[%clk 0:02:14]} 22. Nd2 {[%clk 0:01:43]}  Qg5 {[%clk 0:02:07]} 23. f3 {[%clk 0:01:38]}  Bxa4 {[%clk 0:01:49]} 24. Ne4 {[%clk 0:01:20]}  Qg6 {[%clk 0:01:47]} 25. bxa4 {[%clk 0:01:15]}  Rxb2 {[%clk 0:01:45]} 26. Rd2 {[%clk 0:01:15]}  Rb4 {[%clk 0:01:38]} 27. Qc2 {[%clk 0:01:03]}  Kh7 {[%clk 0:01:35]} 28. h4 {[%clk 0:01:01]}  Kg8 {[%clk 0:01:32]} 29. g4 {[%clk 0:00:58]}  Be7 {[%clk 0:01:27]} 30. h5 {[%clk 0:00:57]}  Qe6 {[%clk 0:01:28]} 31. Rd5 {[%clk 0:00:51]}  Bf8 {[%clk 0:01:20]} 32. Kg2 {[%clk 0:00:50]}  Qe8 {[%clk 0:00:54]} 33. Nxd6 {[%clk 0:00:37]}  Qxa4 {[%clk 0:00:53]} 34. Qxa4 {[%clk 0:00:36]}  Rxa4 {[%clk 0:00:53]} 35. Nf5 {[%clk 0:00:28]}  g6 {[%clk 0:00:49]} 36. hxg6 {[%clk 0:00:28]}  fxg6 {[%clk 0:00:49]} 37. Nd6 {[%clk 0:00:26]}  Ra2+ {[%clk 0:00:45]} 38. Kf1 {[%clk 0:00:24]}  a4 {[%clk 0:00:45]} 39. Nb5 {[%clk 0:00:20]}  a3 {[%clk 0:00:45]} 40. Rd8 {[%clk 0:00:18]}  Ra1+ {[%clk 0:00:43]} 41. Kg2 {[%clk 0:00:18]}  a2 {[%clk 0:00:44]} 42. Ra8 {[%clk 0:00:18]}  Kf7 {[%clk 0:00:40]} 43. Nc3 {[%clk 0:00:17]}  Bg7 {[%clk 0:00:38]} 44. Nxa2 {[%clk 0:00:15]}  Bd4 {[%clk 0:00:38]} 45. f4 {[%clk 0:00:15]}  h5 {[%clk 0:00:37]} 46. gxh5 {[%clk 0:00:15]}  gxh5 {[%clk 0:00:38]} 47. Ra6 {[%clk 0:00:15]}  h4 {[%clk 0:00:35]} 48. Kh3 {[%clk 0:00:14]}  Rh1+ {[%clk 0:00:35]} 49. Kg2 {[%clk 0:00:14]}  Ra1 {[%clk 0:00:31]} 50. Kh3 {[%clk 0:00:13]}  Bf6 {[%clk 0:00:31]} 51. f5 {[%clk 0:00:09]}  Kg7 {[%clk 0:00:29]} 52. Kg2 {[%clk 0:00:06]}  Kf7 {[%clk 0:00:25]} 53. Kh3 {[%clk 0:00:06]}  Bg5 {[%clk 0:00:25]} 54. Kg4 {[%clk 0:00:05]}  Be7 {[%clk 0:00:25]} 55. Nb4 {[%clk 0:00:03]}  Rg1+ {[%clk 0:00:24]} 56. Kh3 {[%clk 0:00:02]}  cxb4 {[%clk 0:00:24]} 57. Rb6 {[%clk 0:00:02]}  Rf1 {[%clk 0:00:21]} 0-1


[Site "https://www.chess.com"]

[Event "Titled Tuesday Blitz November 22 Late 2022"]
[White "Clawitter, Craig"]
[Black "Machidon, Cristi"]
[WhiteFideId "2023105"]
[BlackFideId "13904590"]
[WhiteElo "2238"]
[BlackElo "2333"]
[Result "0-1"]
[Round "01"]
[TimeControl "180+1"]
[Date "2022.11.23"]
[WhiteClock "0:00:02"]
[BlackClock "0:00:12"]

1. e4 {[%clk 0:03:00]}  e6 {[%clk 0:02:58]} 2. d4 {[%clk 0:03:00]}  d5 {[%clk 0:02:58]} 3. e5 {[%clk 0:02:59]}  c5 {[%clk 0:02:58]} 4. c3 {[%clk 0:02:59]}  Nc6 {[%clk 0:02:52]} 5. Nf3 {[%clk 0:02:59]}  Qb6 {[%clk 0:02:53]} 6. a3 {[%clk 0:02:56]}  Bd7 {[%clk 0:02:51]} 7. b4 {[%clk 0:02:56]}  cxd4 {[%clk 0:02:50]} 8. cxd4 {[%clk 0:02:57]}  Rc8 {[%clk 0:02:46]} 9. Be3 {[%clk 0:02:57]}  Nh6 {[%clk 0:02:46]} 10. Bd3 {[%clk 0:02:51]}  Be7 {[%clk 0:02:11]} 11. O-O {[%clk 0:02:50]}  Nf5 {[%clk 0:02:08]} 12. Bxf5 {[%clk 0:02:19]}  exf5 {[%clk 0:02:09]} 13. Nc3 {[%clk 0:02:20]}  Be6 {[%clk 0:02:08]} 14. Na4 {[%clk 0:02:19]}  Qd8 {[%clk 0:01:59]} 15. Rc1 {[%clk 0:02:16]}  O-O {[%clk 0:01:56]} 16. Nc5 {[%clk 0:02:15]}  b6 {[%clk 0:01:55]} 17. Nd3 {[%clk 0:01:38]}  Qd7 {[%clk 0:01:47]} 18. h4 {[%clk 0:01:31]}  Rc7 {[%clk 0:01:44]} 19. Nf4 {[%clk 0:01:09]}  Rfc8 {[%clk 0:01:43]} 20. Nh5 {[%clk 0:01:08]}  Bf8 {[%clk 0:01:05]} 21. Bg5 {[%clk 0:01:02]}  Ne7 {[%clk 0:01:00]} 22. Qd2 {[%clk 0:00:48]}  Rc4 {[%clk 0:00:43]} 23. Nf6+ {[%clk 0:00:21]}  gxf6 {[%clk 0:00:43]} 24. Bxf6 {[%clk 0:00:22]}  Ng6 {[%clk 0:00:39]} 25. h5 {[%clk 0:00:22]}  Qc6 {[%clk 0:00:26]} 26. Rxc4 {[%clk 0:00:15]}  dxc4 {[%clk 0:00:27]} 27. hxg6 {[%clk 0:00:16]}  fxg6 {[%clk 0:00:27]} 28. Ng5 {[%clk 0:00:13]}  c3 {[%clk 0:00:22]} 29. Qf4 {[%clk 0:00:12]}  c2 {[%clk 0:00:19]} 30. Rc1 {[%clk 0:00:12]}  Bd5 {[%clk 0:00:18]} 31. Qh4 {[%clk 0:00:12]}  Qd7 {[%clk 0:00:18]} 32. e6 {[%clk 0:00:12]}  Bxe6 {[%clk 0:00:17]} 33. Be5 {[%clk 0:00:10]}  Bd5 {[%clk 0:00:16]} 34. Nf3 {[%clk 0:00:04]}  Qe7 {[%clk 0:00:15]} 35. Bf6 {[%clk 0:00:04]}  Qe4 {[%clk 0:00:15]} 36. Qg5 {[%clk 0:00:03]}  Qg4 {[%clk 0:00:13]} 37. Qxg4 {[%clk 0:00:01]}  fxg4 {[%clk 0:00:14]} 38. Ne5 {[%clk 0:00:02]}  a5 {[%clk 0:00:12]} 0-1


[Site "https://www.chess.com"]

[Event "Titled Tuesday Blitz November 22 Late 2022"]
[White "Deac, Bogdan-Daniel"]
[Black "Dzierzak, Radoslaw"]
[WhiteFideId "1226380"]
[BlackFideId "1161407"]
[WhiteElo "2648"]
[BlackElo "2111"]
[Result "1-0"]
[Round "01"]
[TimeControl "180+1"]
[Date "2022.11.22"]
[WhiteClock "0:00:14"]
[BlackClock "0:00:03"]

1. b3 {[%clk 0:03:00]}  e5 {[%clk 0:02:59]} 2. Bb2 {[%clk 0:03:00]}  Nc6 {[%clk 0:03:00]} 3. Nf3 {[%clk 0:03:00]}  e4 {[%clk 0:02:59]} 4. Nd4 {[%clk 0:03:00]}  Nxd4 {[%clk 0:02:59]} 5. Bxd4 {[%clk 0:03:00]}  Qg5 {[%clk 0:02:51]} 6. c4 {[%clk 0:02:53]}  Nf6 {[%clk 0:02:41]} 7. Nc3 {[%clk 0:02:50]}  c6 {[%clk 0:01:55]} 8. Bxf6 {[%clk 0:02:39]}  Qxf6 {[%clk 0:01:55]} 9. Nxe4 {[%clk 0:02:40]}  Qe6 {[%clk 0:01:55]} 10. Nc3 {[%clk 0:02:35]}  Bb4 {[%clk 0:01:46]} 11. e3 {[%clk 0:02:28]}  O-O {[%clk 0:01:45]} 12. Bd3 {[%clk 0:02:17]}  d5 {[%clk 0:01:43]} 13. cxd5 {[%clk 0:02:16]}  cxd5 {[%clk 0:01:43]} 14. Ne2 {[%clk 0:02:13]}  Qf6 {[%clk 0:01:24]} 15. Nf4 {[%clk 0:02:04]}  d4 {[%clk 0:01:20]} 16. Nd5 {[%clk 0:01:40]}  Qd6 {[%clk 0:01:17]} 17. Nxb4 {[%clk 0:01:37]}  Qxb4 {[%clk 0:01:18]} 18. O-O {[%clk 0:01:30]}  Be6 {[%clk 0:01:16]} 19. Qe2 {[%clk 0:01:16]}  Rfd8 {[%clk 0:01:12]} 20. e4 {[%clk 0:01:07]}  a5 {[%clk 0:01:05]} 21. f4 {[%clk 0:01:07]}  f6 {[%clk 0:01:04]} 22. f5 {[%clk 0:00:53]}  Bf7 {[%clk 0:01:02]} 23. e5 {[%clk 0:00:53]}  fxe5 {[%clk 0:01:03]} 24. f6 {[%clk 0:00:53]}  g6 {[%clk 0:01:03]} 25. Rae1 {[%clk 0:00:41]}  Re8 {[%clk 0:01:00]} 26. Bb5 {[%clk 0:00:35]}  Re6 {[%clk 0:00:40]} 27. Bc4 {[%clk 0:00:34]}  Ree8 {[%clk 0:00:40]} 28. Bxf7+ {[%clk 0:00:27]}  Kxf7 {[%clk 0:00:41]} 29. Qe4 {[%clk 0:00:27]}  Rad8 {[%clk 0:00:32]} 30. Qh4 {[%clk 0:00:23]}  h5 {[%clk 0:00:24]} 31. Qg5 {[%clk 0:00:23]}  d3 {[%clk 0:00:15]} 32. Qh6 {[%clk 0:00:19]}  Qd4+ {[%clk 0:00:13]} 33. Kh1 {[%clk 0:00:19]}  Ke6 {[%clk 0:00:05]} 34. f7 {[%clk 0:00:17]}  Re7 {[%clk 0:00:03]} 35. f8=Q {[%clk 0:00:14]}  Rxf8 {[%clk 0:00:03]} 36. Qxg6+ {[%clk 0:00:14]}  Kd7 {[%clk 0:00:03]} 37. Rxf8 {[%clk 0:00:14]} 1-0


[Site "https://www.chess.com"]

[Event "Titled Tuesday Blitz November 22 Late 2022"]
[White "Drygalov, Sergey"]
[Black "Koutlas, Nikolaos"]
[WhiteFideId "24171743"]
[BlackFideId "25827138"]
[WhiteElo "2528"]
[BlackElo "2167"]
[Result "1-0"]
[Round "01"]
[TimeControl "180+1"]
[Date "2022.11.22"]
[WhiteClock "0:00:20"]
[BlackClock "0:00:06"]

1. d4 {[%clk 0:02:59]}  Nf6 {[%clk 0:02:57]} 2. c4 {[%clk 0:03:00]}  g6 {[%clk 0:02:57]} 3. Nc3 {[%clk 0:03:00]}  Bg7 {[%clk 0:02:58]} 4. e4 {[%clk 0:03:01]}  d6 {[%clk 0:02:59]} 5. Nf3 {[%clk 0:03:01]}  O-O {[%clk 0:02:59]} 6. Be2 {[%clk 0:03:02]}  Nc6 {[%clk 0:02:59]} 7. d5 {[%clk 0:03:02]}  Nb4 {[%clk 0:02:58]} 8. O-O {[%clk 0:03:01]}  a5 {[%clk 0:02:51]} 9. Be3 {[%clk 0:02:58]}  e5 {[%clk 0:02:45]} 10. Nd2 {[%clk 0:02:51]}  Na6 {[%clk 0:02:40]} 11. a3 {[%clk 0:02:48]}  Nc5 {[%clk 0:02:37]} 12. b4 {[%clk 0:02:45]}  axb4 {[%clk 0:02:36]} 13. axb4 {[%clk 0:02:46]}  Rxa1 {[%clk 0:02:36]} 14. Qxa1 {[%clk 0:02:46]}  Na6 {[%clk 0:02:37]} 15. Qa3 {[%clk 0:02:25]}  Ng4 {[%clk 0:02:33]} 16. Bxg4 {[%clk 0:02:25]}  Bxg4 {[%clk 0:02:34]} 17. b5 {[%clk 0:02:26]}  Nb8 {[%clk 0:02:30]} 18. c5 {[%clk 0:02:26]}  dxc5 {[%clk 0:02:20]} 19. Bxc5 {[%clk 0:02:26]}  Re8 {[%clk 0:02:21]} 20. Nc4 {[%clk 0:02:26]}  Nd7 {[%clk 0:02:17]} 21. Bb4 {[%clk 0:02:22]}  g5 {[%clk 0:01:53]} 22. d6 {[%clk 0:02:19]}  c6 {[%clk 0:01:50]} 23. bxc6 {[%clk 0:02:16]}  bxc6 {[%clk 0:01:51]} 24. Qa7 {[%clk 0:02:15]}  Qb8 {[%clk 0:01:48]} 25. Qxb8 {[%clk 0:02:02]}  Rxb8 {[%clk 0:01:47]} 26. Ba5 {[%clk 0:02:00]}  Bf8 {[%clk 0:01:38]} 27. Bc7 {[%clk 0:01:52]}  Rb3 {[%clk 0:01:36]} 28. Rc1 {[%clk 0:01:50]}  f6 {[%clk 0:01:23]} 29. h3 {[%clk 0:01:45]}  Be6 {[%clk 0:01:22]} 30. Na5 {[%clk 0:01:46]}  c5 {[%clk 0:01:15]} 31. Nxb3 {[%clk 0:01:45]}  Bxb3 {[%clk 0:01:14]} 32. Rb1 {[%clk 0:01:18]}  Bc4 {[%clk 0:01:14]} 33. Na4 {[%clk 0:00:59]}  Bd3 {[%clk 0:01:11]} 34. Rc1 {[%clk 0:00:51]}  c4 {[%clk 0:01:09]} 35. f3 {[%clk 0:00:45]}  Kf7 {[%clk 0:01:09]} 36. Nb2 {[%clk 0:00:44]}  Ke6 {[%clk 0:01:09]} 37. Nxc4 {[%clk 0:00:43]}  h5 {[%clk 0:01:03]} 38. Ne3 {[%clk 0:00:42]}  h4 {[%clk 0:00:57]} 39. Nd5 {[%clk 0:00:35]}  Bb5 {[%clk 0:00:55]} 40. Nc3 {[%clk 0:00:34]}  Bc6 {[%clk 0:00:52]} 41. Nd1 {[%clk 0:00:34]}  Ba4 {[%clk 0:00:48]} 42. Ne3 {[%clk 0:00:34]}  Bxd6 {[%clk 0:00:47]} 43. Bxd6 {[%clk 0:00:34]}  Kxd6 {[%clk 0:00:48]} 44. Kf2 {[%clk 0:00:34]}  Bb5 {[%clk 0:00:46]} 45. Rd1+ {[%clk 0:00:34]}  Ke6 {[%clk 0:00:45]} 46. Nf5 {[%clk 0:00:35]}  Nc5 {[%clk 0:00:44]} 47. Rd6+ {[%clk 0:00:36]}  Kf7 {[%clk 0:00:43]} 48. Rd5 {[%clk 0:00:35]}  Nd3+ {[%clk 0:00:42]} 49. Ke3 {[%clk 0:00:35]}  Nf4 {[%clk 0:00:35]} 50. Rxb5 {[%clk 0:00:35]}  Nxg2+ {[%clk 0:00:35]} 51. Kf2 {[%clk 0:00:35]}  Nf4 {[%clk 0:00:36]} 52. Rb7+ {[%clk 0:00:36]}  Kg6 {[%clk 0:00:31]} 53. Rg7+ {[%clk 0:00:34]}  Kh5 {[%clk 0:00:31]} 54. Ne7 {[%clk 0:00:28]}  Nxh3+ {[%clk 0:00:30]} 55. Kf1 {[%clk 0:00:28]}  Nf4 {[%clk 0:00:09]} 56. Ng8 {[%clk 0:00:28]}  h3 {[%clk 0:00:10]} 57. Nxf6+ {[%clk 0:00:23]}  Kh4 {[%clk 0:00:10]} 58. Kf2 {[%clk 0:00:20]}  g4 {[%clk 0:00:06]} 59. Rxg4# {[%clk 0:00:20]} 1-0


[Site "https://www.chess.com"]

[Event "Titled Tuesday Blitz November 22 Late 2022"]
[White "Eric0702"]
[Black "Maksimovic, Bojan"]
[BlackFideId "14408120"]
[WhiteElo "2436"]
[BlackElo "2447"]
[Result "0-1"]
[Round "01"]
[TimeControl "180+1"]
[Date "2022.11.23"]
[WhiteClock "0:00:17"]
[BlackClock "0:02:03"]

1. d4 {[%clk 0:02:59]}  Nf6 {[%clk 0:02:57]} 2. Nf3 {[%clk 0:02:59]}  g6 {[%clk 0:02:57]} 3. c4 {[%clk 0:02:58]}  Bg7 {[%clk 0:02:57]} 4. Nc3 {[%clk 0:02:58]}  O-O {[%clk 0:02:58]} 5. g3 {[%clk 0:02:58]}  d6 {[%clk 0:02:58]} 6. Bg2 {[%clk 0:02:58]}  Nc6 {[%clk 0:02:59]} 7. O-O {[%clk 0:02:50]}  a6 {[%clk 0:02:58]} 8. b3 {[%clk 0:02:37]}  Rb8 {[%clk 0:02:55]} 9. d5 {[%clk 0:02:36]}  Na5 {[%clk 0:02:54]} 10. Bg5 {[%clk 0:02:32]}  h6 {[%clk 0:02:54]} 11. Bd2 {[%clk 0:02:26]}  c5 {[%clk 0:02:54]} 12. dxc6 {[%clk 0:02:23]}  Nxc6 {[%clk 0:02:54]} 13. Ne1 {[%clk 0:02:06]}  Bf5 {[%clk 0:02:53]} 14. e4 {[%clk 0:02:00]}  Bg4 {[%clk 0:02:53]} 15. Qc2 {[%clk 0:01:51]}  Nd4 {[%clk 0:02:51]} 16. Qd3 {[%clk 0:01:46]}  Nd7 {[%clk 0:02:51]} 17. h3 {[%clk 0:01:30]}  Be2 {[%clk 0:02:22]} 18. Nxe2 {[%clk 0:01:08]}  Nxe2+ {[%clk 0:02:22]} 19. Qxe2 {[%clk 0:01:09]}  Bxa1 {[%clk 0:02:22]} 20. Bxh6 {[%clk 0:01:10]}  Bg7 {[%clk 0:02:23]} 21. Bxg7 {[%clk 0:00:50]}  Kxg7 {[%clk 0:02:24]} 22. Nd3 {[%clk 0:00:51]}  b5 {[%clk 0:02:14]} 23. Rc1 {[%clk 0:00:25]}  bxc4 {[%clk 0:02:08]} 24. Rxc4 {[%clk 0:00:25]}  Rc8 {[%clk 0:02:08]} 25. Qb2+ {[%clk 0:00:20]}  Kg8 {[%clk 0:02:07]} 26. Ra4 {[%clk 0:00:20]}  a5 {[%clk 0:02:06]} 27. h4 {[%clk 0:00:20]}  Nc5 {[%clk 0:02:06]} 28. Nxc5 {[%clk 0:00:20]}  Rxc5 {[%clk 0:02:06]} 29. Qd2 {[%clk 0:00:17]}  Qb6 {[%clk 0:02:04]} 30. Bf3 {[%clk 0:00:17]}  Rfc8 {[%clk 0:02:04]} 31. Qh6 {[%clk 0:00:17]}  Rc2 {[%clk 0:02:03]} 0-1


[Site "https://www.chess.com"]

[Event "Titled Tuesday Blitz November 22 Late 2022"]
[White "Fedoseev, Vladimir"]
[Black "Bilan, Danila"]
[WhiteFideId "24130737"]
[BlackFideId "24161918"]
[WhiteElo "2726"]
[BlackElo "2173"]
[Result "1-0"]
[Round "01"]
[TimeControl "180+1"]
[Date "2022.11.22"]
[WhiteClock "0:02:11"]
[BlackClock "0:00:36"]

1. e4 {[%clk 0:03:00]}  c6 {[%clk 0:03:00]} 2. d4 {[%clk 0:02:59]}  d5 {[%clk 0:03:00]} 3. exd5 {[%clk 0:03:00]}  cxd5 {[%clk 0:03:01]} 4. Bd3 {[%clk 0:03:01]}  Nc6 {[%clk 0:03:00]} 5. c3 {[%clk 0:03:02]}  Qc7 {[%clk 0:03:01]} 6. Ne2 {[%clk 0:03:01]}  Bg4 {[%clk 0:03:01]} 7. Qb3 {[%clk 0:03:01]}  e6 {[%clk 0:02:53]} 8. Bf4 {[%clk 0:03:01]}  Qd7 {[%clk 0:02:53]} 9. Ng3 {[%clk 0:02:58]}  g6 {[%clk 0:02:49]} 10. Nd2 {[%clk 0:02:56]}  Bg7 {[%clk 0:02:45]} 11. h3 {[%clk 0:02:56]}  Bf5 {[%clk 0:02:45]} 12. Nxf5 {[%clk 0:02:56]}  gxf5 {[%clk 0:02:46]} 13. g4 {[%clk 0:02:56]}  Nge7 {[%clk 0:02:37]} 14. gxf5 {[%clk 0:02:56]}  Nxf5 {[%clk 0:02:38]} 15. Bxf5 {[%clk 0:02:56]}  exf5 {[%clk 0:02:39]} 16. Rg1 {[%clk 0:02:55]}  Bf6 {[%clk 0:02:27]} 17. O-O-O {[%clk 0:02:48]}  O-O-O {[%clk 0:02:26]} 18. Qc2 {[%clk 0:02:41]}  Rde8 {[%clk 0:02:19]} 19. Nb3 {[%clk 0:02:41]}  b6 {[%clk 0:02:14]} 20. Qd3 {[%clk 0:02:34]}  Re4 {[%clk 0:02:01]} 21. Qf3 {[%clk 0:02:28]}  Kb7 {[%clk 0:01:49]} 22. Kb1 {[%clk 0:02:27]}  Qe6 {[%clk 0:01:42]} 23. Nd2 {[%clk 0:02:26]}  Re2 {[%clk 0:01:15]} 24. Be3 {[%clk 0:02:25]}  Rxd2 {[%clk 0:01:13]} 25. Rxd2 {[%clk 0:02:24]}  Na5 {[%clk 0:01:10]} 26. Re2 {[%clk 0:02:23]}  Qe4+ {[%clk 0:01:06]} 27. Qxe4 {[%clk 0:02:22]}  fxe4 {[%clk 0:01:07]} 28. b3 {[%clk 0:02:20]}  h6 {[%clk 0:00:57]} 29. Bf4 {[%clk 0:02:17]}  Nc6 {[%clk 0:00:56]} 30. f3 {[%clk 0:02:14]}  Re8 {[%clk 0:00:44]} 31. fxe4 {[%clk 0:02:14]}  dxe4 {[%clk 0:00:45]} 32. Rge1 {[%clk 0:02:13]}  Bh4 {[%clk 0:00:42]} 33. Rxe4 {[%clk 0:02:13]}  Rg8 {[%clk 0:00:40]} 34. R1e2 {[%clk 0:02:11]}  Rg1+ {[%clk 0:00:39]} 35. Kb2 {[%clk 0:02:11]}  h5 {[%clk 0:00:36]} 36. d5 {[%clk 0:02:11]} 1-0


[Site "https://www.chess.com"]

[Event "Titled Tuesday Blitz November 22 Late 2022"]
[White "Fernandez Guillen, Ernesto J."]
[Black "Silva, Caio Henrique Angelico"]
[WhiteFideId "3512428"]
[BlackFideId "22777210"]
[WhiteElo "2450"]
[BlackElo "1990"]
[Result "1-0"]
[Round "01"]
[TimeControl "180+1"]
[Date "2022.11.23"]
[WhiteClock "0:01:25"]
[BlackClock "0:01:55"]

1. e4 {[%clk 0:03:00]}  c6 {[%clk 0:02:56]} 2. d4 {[%clk 0:02:36]}  d5 {[%clk 0:02:57]} 3. e5 {[%clk 0:01:52]}  c5 {[%clk 0:02:56]} 4. dxc5 {[%clk 0:01:53]}  e6 {[%clk 0:02:56]} 5. a3 {[%clk 0:01:54]}  Bxc5 {[%clk 0:02:56]} 6. b4 {[%clk 0:01:50]}  Be7 {[%clk 0:02:55]} 7. Qg4 {[%clk 0:01:51]}  g6 {[%clk 0:02:55]} 8. Nf3 {[%clk 0:01:51]}  a5 {[%clk 0:02:54]} 9. Bb2 {[%clk 0:01:50]}  h5 {[%clk 0:02:51]} 10. Qf4 {[%clk 0:01:45]}  g5 {[%clk 0:02:46]} 11. Qd2 {[%clk 0:01:43]}  axb4 {[%clk 0:02:44]} 12. axb4 {[%clk 0:01:44]}  Rxa1 {[%clk 0:02:44]} 13. Bxa1 {[%clk 0:01:44]}  g4 {[%clk 0:02:45]} 14. Nd4 {[%clk 0:01:43]}  Nc6 {[%clk 0:02:38]} 15. b5 {[%clk 0:01:35]}  Nxd4 {[%clk 0:02:14]} 16. Bxd4 {[%clk 0:01:33]}  Nh6 {[%clk 0:02:13]} 17. Bd3 {[%clk 0:01:33]}  Bd7 {[%clk 0:02:11]} 18. O-O {[%clk 0:01:32]}  Qc7 {[%clk 0:02:03]} 19. Nc3 {[%clk 0:01:29]}  Bb4 {[%clk 0:01:56]} 20. Nxd5 {[%clk 0:01:27]}  Qa5 {[%clk 0:01:55]} 21. Qxb4 {[%clk 0:01:25]} 1-0


[Site "https://www.chess.com"]

[Event "Titled Tuesday Blitz November 22 Late 2022"]
[White "Figorito, Nick"]
[Black "Mladek, Richard"]
[WhiteFideId "30923689"]
[BlackFideId "386588"]
[WhiteElo "2288"]
[BlackElo "2271"]
[Result "0-1"]
[Round "01"]
[TimeControl "180+1"]
[Date "2022.11.23"]
[WhiteClock "0:00:42"]
[BlackClock "0:00:34"]

1. Nf3 {[%clk 0:03:00]}  d5 {[%clk 0:02:56]} 2. g3 {[%clk 0:03:00]}  c5 {[%clk 0:02:53]} 3. Bg2 {[%clk 0:03:01]}  Nc6 {[%clk 0:02:54]} 4. d4 {[%clk 0:03:02]}  Nf6 {[%clk 0:02:50]} 5. O-O {[%clk 0:03:01]}  e6 {[%clk 0:02:51]} 6. c4 {[%clk 0:03:01]}  dxc4 {[%clk 0:02:52]} 7. Ne5 {[%clk 0:03:01]}  Bd7 {[%clk 0:02:48]} 8. Nxc6 {[%clk 0:02:59]}  Bxc6 {[%clk 0:02:47]} 9. Bxc6+ {[%clk 0:02:59]}  bxc6 {[%clk 0:02:48]} 10. Qa4 {[%clk 0:02:59]}  Qb6 {[%clk 0:02:31]} 11. Na3 {[%clk 0:02:43]}  cxd4 {[%clk 0:02:24]} 12. Nxc4 {[%clk 0:02:37]}  Qb5 {[%clk 0:02:25]} 13. Qc2 {[%clk 0:02:34]}  Be7 {[%clk 0:02:14]} 14. a4 {[%clk 0:02:34]}  Qd5 {[%clk 0:01:48]} 15. e3 {[%clk 0:02:31]}  d3 {[%clk 0:01:46]} 16. Qb3 {[%clk 0:02:14]}  O-O {[%clk 0:01:43]} 17. Nd2 {[%clk 0:02:12]}  Qxb3 {[%clk 0:01:26]} 18. Nxb3 {[%clk 0:02:13]}  c5 {[%clk 0:01:27]} 19. Na5 {[%clk 0:02:06]}  Rac8 {[%clk 0:01:10]} 20. Nc4 {[%clk 0:02:06]}  Rfd8 {[%clk 0:01:06]} 21. Bd2 {[%clk 0:02:06]}  Ne4 {[%clk 0:01:03]} 22. Rfd1 {[%clk 0:02:05]}  Bf6 {[%clk 0:01:00]} 23. f3 {[%clk 0:02:01]}  Nd6 {[%clk 0:01:00]} 24. Nxd6 {[%clk 0:01:44]}  Rxd6 {[%clk 0:01:00]} 25. Bc3 {[%clk 0:01:32]}  Bxc3 {[%clk 0:00:54]} 26. bxc3 {[%clk 0:01:33]}  c4 {[%clk 0:00:55]} 27. Rd2 {[%clk 0:01:26]}  Rb6 {[%clk 0:00:55]} 28. e4 {[%clk 0:01:19]}  Rb3 {[%clk 0:00:55]} 29. Rc1 {[%clk 0:01:19]}  Rcb8 {[%clk 0:00:49]} 30. Kf2 {[%clk 0:01:19]}  e5 {[%clk 0:00:49]} 31. Ke3 {[%clk 0:01:19]}  f6 {[%clk 0:00:49]} 32. f4 {[%clk 0:01:19]}  Kf7 {[%clk 0:00:48]} 33. fxe5 {[%clk 0:01:19]}  fxe5 {[%clk 0:00:48]} 34. Rf2+ {[%clk 0:01:15]}  Ke6 {[%clk 0:00:49]} 35. Ra2 {[%clk 0:01:11]}  Rb2 {[%clk 0:00:47]} 36. Rca1 {[%clk 0:01:01]}  R8b3 {[%clk 0:00:43]} 37. a5 {[%clk 0:00:49]}  Rxa2 {[%clk 0:00:39]} 38. Rxa2 {[%clk 0:00:50]}  Rxc3 {[%clk 0:00:40]} 39. Ra4 {[%clk 0:00:44]}  Rc2 {[%clk 0:00:38]} 40. Rb4 {[%clk 0:00:42]}  d2 {[%clk 0:00:33]} 41. Ke2 {[%clk 0:00:42]}  c3 {[%clk 0:00:34]} 0-1


[Site "https://www.chess.com"]

[Event "Titled Tuesday Blitz November 22 Late 2022"]
[White "Fiol, Fabrice"]
[Black "Pakleza, Zbigniew"]
[WhiteFideId "611670"]
[BlackFideId "1119290"]
[WhiteElo "2455"]
[BlackElo "2411"]
[Result "0-1"]
[Round "01"]
[TimeControl "180+1"]
[Date "2022.11.23"]
[WhiteClock "0:00:35"]
[BlackClock "0:00:25"]

1. e4 {[%clk 0:02:59]}  d6 {[%clk 0:02:59]} 2. d4 {[%clk 0:02:59]}  Nf6 {[%clk 0:03:00]} 3. Nc3 {[%clk 0:02:55]}  c6 {[%clk 0:03:00]} 4. h3 {[%clk 0:02:53]}  b5 {[%clk 0:03:00]} 5. Bd3 {[%clk 0:02:52]}  e5 {[%clk 0:02:59]} 6. Nf3 {[%clk 0:02:51]}  Nbd7 {[%clk 0:03:00]} 7. O-O {[%clk 0:02:51]}  Be7 {[%clk 0:03:00]} 8. a4 {[%clk 0:02:46]}  b4 {[%clk 0:03:00]} 9. Ne2 {[%clk 0:02:46]}  O-O {[%clk 0:03:01]} 10. Ng3 {[%clk 0:02:46]}  Re8 {[%clk 0:03:01]} 11. c3 {[%clk 0:02:46]}  bxc3 {[%clk 0:02:59]} 12. bxc3 {[%clk 0:02:46]}  Bf8 {[%clk 0:03:00]} 13. Re1 {[%clk 0:02:42]}  Rb8 {[%clk 0:02:54]} 14. Bg5 {[%clk 0:02:37]}  Qa5 {[%clk 0:02:50]} 15. Qc2 {[%clk 0:02:32]}  g6 {[%clk 0:02:35]} 16. Rab1 {[%clk 0:02:25]}  Rxb1 {[%clk 0:02:27]} 17. Rxb1 {[%clk 0:02:26]}  Bg7 {[%clk 0:02:25]} 18. dxe5 {[%clk 0:01:55]}  dxe5 {[%clk 0:02:23]} 19. Bc4 {[%clk 0:01:54]}  Nc5 {[%clk 0:02:01]} 20. Be3 {[%clk 0:01:37]}  Qxa4 {[%clk 0:01:48]} 21. Qxa4 {[%clk 0:01:20]}  Nxa4 {[%clk 0:01:49]} 22. Ng5 {[%clk 0:01:19]}  Be6 {[%clk 0:01:23]} 23. Bxe6 {[%clk 0:01:18]}  fxe6 {[%clk 0:01:24]} 24. Bd2 {[%clk 0:01:17]}  Nc5 {[%clk 0:01:15]} 25. f3 {[%clk 0:01:13]}  h6 {[%clk 0:01:12]} 26. Be3 {[%clk 0:01:14]}  Ncd7 {[%clk 0:01:07]} 27. Rb7 {[%clk 0:01:07]}  hxg5 {[%clk 0:01:06]} 28. Bxg5 {[%clk 0:01:07]}  Ra8 {[%clk 0:01:04]} 29. Ne2 {[%clk 0:01:02]}  a5 {[%clk 0:01:02]} 30. Nc1 {[%clk 0:01:02]}  a4 {[%clk 0:01:00]} 31. Na2 {[%clk 0:01:03]}  Bf8 {[%clk 0:00:51]} 32. f4 {[%clk 0:00:59]}  exf4 {[%clk 0:00:43]} 33. e5 {[%clk 0:00:58]}  Ne4 {[%clk 0:00:44]} 34. Bxf4 {[%clk 0:00:51]}  Ndc5 {[%clk 0:00:44]} 35. Rc7 {[%clk 0:00:51]}  Nd3 {[%clk 0:00:43]} 36. Be3 {[%clk 0:00:45]}  Nxe5 {[%clk 0:00:40]} 37. Bd4 {[%clk 0:00:46]}  Bc5 {[%clk 0:00:35]} 38. Kh2 {[%clk 0:00:42]}  Bd6 {[%clk 0:00:34]} 39. Rb7 {[%clk 0:00:35]}  Nf3+ {[%clk 0:00:34]} 40. Kh1 {[%clk 0:00:35]}  Ng3# {[%clk 0:00:25]} 0-1


[Site "https://www.chess.com"]